bitfinex-derivatives/quotes_BTCF0:USTF0_20250416
["timestamp","ask_amount","ask_price","bid_price","bid_amount"]
[1744817002203,0.1268088,85000.0,84999.0,0.4784578]
[1744817002705,0.0609088,85000.0,84999.0,0.5784578]
[1744817003001,0.0608288,85000.0,84999.0,0.4784578]
[1744817003205,0.1176606,84997.0,84996.0,0.186062]
[1744817003396,0.1176606,84997.0,84996.0,0.267662]
[1744817005704,0.1840606,84997.0,84996.0,0.267662]
[1744817007508,0.2502606,84997.0,84996.0,0.267662]
[1744817007807,0.2502606,84997.0,84996.0,0.15]
[1744817008197,0.2502606,84997.0,84996.0,0.267662]
[1744817009807,0.2502606,84997.0,84996.0,0.333162]
[1744817010011,0.2502606,84997.0,84996.0,0.2155]
[1744817011105,0.2502606,84997.0,84996.0,0.15]
[1744817011307,0.1176689,84991.0,84990.0,0.0655]
[1744817011504,0.0588345,84991.0,84990.0,0.08]
[1744817011807,0.2576345,84991.0,84990.0,0.08]
[1744817012514,0.2576345,84991.0,84990.0,0.081]
[1744817015210,0.1250345,84991.0,84990.0,0.081]
[1744817015401,0.1251145,84991.0,84990.0,0.1473]
[1744817015801,0.1251145,84991.0,84990.0,0.1463]
[1744817016002,0.1251145,84991.0,84990.0,0.2639703]
[1744817016704,0.1261145,84991.0,84990.0,0.2639703]
[1744817017111,0.1261145,84991.0,84990.0,0.1463]
[1744817017313,0.1903145,84991.0,84990.0,0.08]
[1744817018024,0.1903145,84991.0,84990.0,0.1441]
[1744817018907,0.1903145,84991.0,84990.0,0.08]
[1744817019103,0.0599145,84991.0,84990.0,0.1976703]
[1744817019304,0.00010801,84995.0,84994.0,0.1176647]
[1744817019508,0.1764943,84998.0,84997.0,0.1764797]
[1744817019710,0.2353253,84998.0,84997.0,0.3364797]
[1744817020208,0.2353253,84998.0,84997.0,0.4753797]
[1744817021026,0.2363253,84998.0,84997.0,0.4753797]
[1744817022322,0.1186592,84998.0,84997.0,0.4753797]
[1744817022726,0.1187392,84998.0,84997.0,0.4753797]
[1744817023116,0.1187392,84998.0,84997.0,0.2989]
[1744817023316,0.1187392,84998.0,84997.0,0.4165606]
[1744817025918,0.1187392,84998.0,84997.0,0.2989]
[1744817026121,0.1845392,84998.0,84997.0,0.4165606]
[1744817026920,0.1845392,84998.0,84997.0,0.2989]
[1744817027223,0.1845392,84998.0,84997.0,0.4165606]
[1744817027722,0.1835392,84998.0,84997.0,0.4165606]
[1744817028025,0.1835392,84998.0,84997.0,0.2989]
[1744817028323,0.2480392,84998.0,84997.0,0.2989]
[1744817031121,0.1835392,84998.0,84997.0,0.4165606]
[1744817031324,0.1835392,84998.0,84997.0,0.2989]
[1744817031715,8e-05,84998.0,84997.0,0.4165606]
[1744817031912,0.00017568,85006.0,85000.0,0.0588276]
[1744817032112,0.11782418,85006.0,85003.0,0.1176523]
[1744817032312,0.11782418,85006.0,85004.0,0.132]
[1744817032512,0.00017568,85006.0,85004.0,0.3496508]
[1744817032717,0.00014581,85005.0,85004.0,0.3496508]
[1744817033119,0.00014581,85005.0,85004.0,0.232]
[1744817033318,0.06464581,85005.0,85004.0,0.232]
[1744817033521,0.06464581,85005.0,85004.0,0.3496509]
[1744817034132,0.00014581,85005.0,85004.0,0.3496509]
[1744817034431,0.00017568,85006.0,85005.0,0.1176495]
[1744817034821,0.00017568,85006.0,85005.0,0.2517495]
[1744817036532,0.00010801,85009.0,85008.0,0.1176453]
[1744817036829,0.00010801,85009.0,85008.0,0.2676453]
[1744817037028,0.1198025,85012.0,85011.0,0.1176412]
[1744817037224,0.1198025,85012.0,85011.0,0.2676412]
[1744817038431,0.1198825,85012.0,85011.0,0.2676412]
[1744817039424,0.4806025,85026.0,85013.0,0.0588188]
[1744817039624,0.00010801,85020.0,85019.0,0.4196144]
[1744817039827,0.00010801,85020.0,85019.0,0.5996144]
[1744817040136,0.00010801,85020.0,85019.0,0.7172445]
[1744817042034,0.1198025,85026.0,85025.0,0.1176218]
[1744817042537,0.1198025,85026.0,85025.0,0.1863218]
[1744817043124,0.00010801,85029.0,85028.0,0.1176177]
[1744817043732,0.00010801,85029.0,85028.0,0.2276177]
[1744817044829,1e-08,85029.0,85028.0,0.5884177]
[1744817045141,0.0587771,85074.0,85057.0,0.1175776]
[1744817045327,0.4124,85076.0,85057.0,0.1175776]
[1744817045328,0.00944904,85065.0,85057.0,0.6583776]
[1744817045834,0.17902064,85058.0,85057.0,0.3608]
[1744817046038,0.17902064,85058.0,85057.0,0.4783776]
[1744817047031,8e-05,85058.0,85057.0,0.4783776]
[1744817047536,0.14929379,85063.0,85059.0,0.1175748]
[1744817047836,0.00010801,85062.0,85059.0,0.1175748]
[1744817048039,0.14929379,85063.0,85059.0,0.1175748]
[1744817048337,0.00508,85060.0,85059.0,0.2675748]
[1744817048633,0.005,85060.0,85059.0,0.2675748]
[1744817048830,0.00508,85060.0,85059.0,0.2675748]
[1744817050539,0.005,85060.0,85059.0,0.2675748]
[1744817050831,0.00508,85060.0,85059.0,0.2675748]
[1744817052630,0.00508,85060.0,85059.0,0.2875748]
[1744817053227,0.00508,85060.0,85059.0,0.6483748]
[1744817053541,0.005,85060.0,85059.0,0.6483748]
[1744817053733,0.00010801,85069.0,85068.0,0.1175624]
[1744817053935,0.00014581,85074.0,85068.0,0.1175624]
[1744817053936,0.0587724,85081.0,85074.0,0.1175541]
[1744817054134,0.37071281,85078.0,85074.0,0.1175541]
[1744817054747,0.42948711,85078.0,85072.0,0.0587782]
[1744817054942,0.5299514,85076.0,85069.0,0.0587805]
[1744817055145,0.5299514,85076.0,85068.0,0.3608]
[1744817055146,0.1901769,85075.0,85068.0,0.3608]
[1744817055443,0.0587785,85072.0,85068.0,0.419581]
[1744817055642,0.1282,85071.0,85070.0,0.1175588]
[1744817055946,0.0646,85071.0,85070.0,0.1175596]
[1744817056146,0.1821582,85071.0,85070.0,0.1175596]
[1744817056839,0.1175624,85069.0,85068.0,0.1175615]
[1744817057051,0.0646,85071.0,85070.0,0.1175596]
[1744817057346,0.1821582,85071.0,85070.0,0.5883596]
[1744817057644,0.058778,85073.0,85072.0,0.1175568]
[1744817057838,0.0646,85074.0,85073.0,0.1175555]
[1744817058044,0.1821546,85074.0,85073.0,0.1831555]
[1744817058434,0.1821546,85074.0,85073.0,0.0656]
[1744817058645,0.2461546,85074.0,85073.0,0.0656]
[1744817059240,0.2461546,85074.0,85073.0,0.1831555]
[1744817061347,0.2461546,85074.0,85073.0,0.0656]
[1744817061736,0.2461546,85074.0,85073.0,0.2470555]
[1744817062749,0.2461546,85074.0,85073.0,0.0656]
[1744817063242,0.1821546,85074.0,85073.0,0.1831555]
[1744817064044,0.1175546,85074.0,85073.0,0.3531555]
[1744817064447,0.1175546,85074.0,85073.0,0.1831555]
[1744817064748,0.1834346,85074.0,85073.0,0.1831555]
[1744817065449,0.1176346,85074.0,85073.0,0.1831555]
[1744817066045,0.1833546,85074.0,85073.0,0.1831555]
[1744817066236,0.1834346,85074.0,85073.0,0.1831555]
[1744817066939,0.1176346,85074.0,85073.0,0.3531555]
[1744817067445,0.1175546,85074.0,85073.0,0.3531555]
[1744817067640,8e-05,85074.0,85073.0,0.3531555]
[1744817067843,0.00010801,85081.0,85080.0,0.1175458]
[1744817068053,0.0587622,85096.0,85095.0,0.1762843]
[1744817068249,0.11778763,85098.0,85097.0,0.1175223]
[1744817068547,0.1175223,85097.0,85096.0,0.0643]
[1744817068751,0.1175223,85097.0,85096.0,0.3518237]
[1744817069051,0.1175223,85097.0,85096.0,0.3618237]
[1744817069247,0.1175292,85092.0,85091.0,0.3608]
[1744817069443,0.1175292,85092.0,85091.0,0.5783306]
[1744817069947,0.1175292,85092.0,85091.0,0.59433788]
[1744817070145,0.1176092,85092.0,85091.0,0.59433788]
[1744817070538,8e-05,85092.0,85091.0,0.5783306]
[1744817070744,0.00046257,85108.0,85106.0,0.1175099]
[1744817071039,0.00978914,85132.0,85126.0,0.1174823]
[1744817071240,0.00010801,85134.0,85126.0,0.4782823]
[1744817071546,0.0587384,85130.0,85126.0,0.3608]
[1744817071849,0.0674,85129.0,85128.0,0.4782795]
[1744817072049,0.1848781,85129.0,85128.0,0.3608]
[1744817072640,0.0664,85129.0,85128.0,0.3608]
[1744817072853,0.117477,85132.0,85131.0,0.1174728]
[1744817073045,0.1174781,85130.0,85129.0,0.1174778]
[1744817073246,0.1174781,85130.0,85129.0,0.1872778]
[1744817073943,0.1174781,85129.0,85128.0,0.3608]
[1744817074144,0.1820781,85129.0,85128.0,0.3608]
[1744817074451,0.0587439,85122.0,85115.0,0.3608]
[1744817074644,0.1175223,85097.0,85096.0,0.3608]
[1744817075250,0.1175361,85087.0,85086.0,0.4783375]
[1744817075552,0.1175361,85087.0,85086.0,0.5683375]
[1744817075851,0.1175361,85087.0,85086.0,0.3608]
[1744817076261,0.1175361,85087.0,85086.0,0.4783375]
[1744817076550,0.1175361,85087.0,85086.0,0.3608]
[1744817076752,0.1824361,85087.0,85086.0,0.3608]
[1744817077551,0.1175403,85084.0,85083.0,0.4175377]
[1744817077940,0.1176203,85084.0,85083.0,0.4175377]
[1744817078660,0.1176203,85084.0,85083.0,0.2999961]
[1744817079661,0.1176203,85084.0,85083.0,0.00505386]
[1744817080557,0.1176203,85084.0,85083.0,0.12259546]
[1744817080745,0.1176203,85084.0,85083.0,0.00505386]
[1744817080947,0.1176203,85084.0,85083.0,0.12259546]
[1744817082159,0.1175472,85079.0,85060.0,0.3608]
[1744817082358,0.1175472,85079.0,85076.0,0.1175509]
[1744817082554,0.1175472,85079.0,85077.0,0.0687]
[1744817083056,0.1175472,85079.0,85074.0,0.058777]
[1744817083352,0.1175472,85079.0,85078.0,0.3609762]
[1744817084053,0.1175472,85079.0,85078.0,0.0001762]
[1744817084254,0.1176272,85079.0,85078.0,0.0001762]
[1744817085356,0.1176272,85079.0,85058.0,0.0587878]
[1744817085357,0.117572,85061.0,85058.0,0.0587878]
[1744817085574,0.117572,85061.0,85060.0,0.5883734]
[1744817086259,0.117572,85061.0,85060.0,0.4708]
[1744817086857,0.1828714,85062.0,85061.0,0.117572]
[1744817087062,0.0587833,85065.0,85061.0,0.117572]
[1744817087063,0.0587833,85065.0,85064.0,0.1175679]
[1744817087354,0.12715731,85069.0,85068.0,0.1175624]
[1744817087355,0.00017631,85069.0,85068.0,0.1175624]
[1744817087559,0.00017631,85069.0,85068.0,0.4783624]
[1744817087560,0.11773731,85069.0,85068.0,0.4783624]
[1744817088159,0.11781731,85069.0,85068.0,0.4783624]
[1744817088655,0.11781731,85069.0,85068.0,0.5083624]
[1744817088861,0.11781731,85069.0,85068.0,0.5468624]
[1744817089362,0.00025631,85069.0,85068.0,0.5468624]
[1744817090065,0.11781731,85069.0,85068.0,0.5468624]
[1744817090564,0.00025631,85069.0,85068.0,0.5768624]
[1744817090751,0.00025631,85069.0,85068.0,0.5778624]
[1744817090953,0.00017631,85069.0,85068.0,0.5778624]
[1744817091150,0.00010801,85083.0,85082.0,0.117543]
[1744817091362,0.00010801,85083.0,85082.0,0.578343]
[1744817091664,0.1175403,85084.0,85083.0,0.1175416]
[1744817092359,0.0587678,85088.0,85087.0,0.1175361]
[1744817092657,0.0587678,85088.0,85087.0,0.2075361]
[1744817092861,0.0587678,85088.0,85087.0,0.09]
[1744817093160,0.1287478,85088.0,85087.0,0.2075361]
[1744817093349,0.1287478,85088.0,85087.0,0.1175361]
[1744817093952,0.1175403,85084.0,85083.0,0.002]
[1744817094151,0.1175403,85084.0,85083.0,0.1195407]
[1744817094554,0.1175403,85084.0,85083.0,0.1185407]
[1744817095066,0.1175403,85084.0,85083.0,0.001]
[1744817095265,0.1763082,85086.0,85082.0,0.3608]
[1744817095266,0.1175416,85083.0,85082.0,0.3608]
[1744817095567,0.2456416,85083.0,85082.0,0.4708]
[1744817096263,0.2456416,85083.0,85082.0,0.588343]
[1744817096476,0.2456416,85083.0,85082.0,0.4708]
[1744817096477,0.1819416,85083.0,85082.0,0.4708]
[1744817096669,0.1820216,85083.0,85082.0,0.588343]
[1744817097565,0.1820216,85083.0,85082.0,0.4708]
[1744817098771,0.1820216,85083.0,85082.0,0.588343]
[1744817098973,0.1820216,85083.0,85082.0,0.4708]
[1744817099474,0.06448,85083.0,85082.0,0.588343]
[1744817099670,8e-05,85083.0,85082.0,0.588343]
[1744817099973,0.1175393,85085.0,85084.0,0.1175403]
[1744817100467,0.1838375,85086.0,85085.0,0.1175389]
[1744817100860,0.0663,85086.0,85085.0,0.1175389]
[1744817101063,0.1838375,85086.0,85085.0,0.1175389]
[1744817101260,0.1175416,85083.0,85082.0,0.4783427]
[1744817101465,0.1175416,85083.0,85082.0,0.5783427]
[1744817102070,0.1872416,85083.0,85082.0,0.5783427]
[1744817102270,0.00028385,85092.0,85082.0,0.5205711]
[1744817102566,0.00026573,85097.0,85095.0,0.1175251]
[1744817102771,0.00041154,85109.0,85098.0,0.1175209]
[1744817102976,0.1175046,85110.0,85109.0,0.1175057]
[1744817103173,0.18145014,85112.0,85111.0,0.117503]
[1744817103365,0.005,85112.0,85111.0,0.117503]
[1744817103569,0.1225016,85112.0,85111.0,0.117503]
[1744817103870,0.23757112,85118.0,85117.0,0.1174947]
[1744817103871,0.17882412,85118.0,85117.0,0.1174947]
[1744817104063,0.1848689,85136.0,85133.0,0.1174726]
[1744817104267,0.1848685,85136.0,85135.0,0.1174699]
[1744817104562,0.20719022,85142.0,85137.0,0.1174671]
[1744817104763,0.20719022,85142.0,85137.0,0.1474671]
[1744817104962,0.20708221,85142.0,85137.0,0.1474671]
[1744817105164,0.00508,85138.0,85137.0,0.1474671]
[1744817105377,0.20708221,85142.0,85137.0,0.03]
[1744817105561,0.3608,85161.0,85141.0,0.3608]
[1744817105760,0.0587225,85154.0,85141.0,0.3708]
[1744817105965,0.0587277,85146.0,85141.0,0.3608]
[1744817106165,0.1174602,85142.0,85141.0,0.3608]
[1744817106376,0.1174685,85136.0,85135.0,0.3608]
[1744817106761,0.1174685,85136.0,85135.0,0.4782699]
[1744817106962,0.1174685,85136.0,85135.0,0.3608]
[1744817107174,0.1174768,85130.0,85128.0,0.3608]
[1744817107369,0.1174768,85130.0,85129.0,0.05017619]
[1744817107876,0.48834597,85130.0,85129.0,0.05017619]
[1744817108178,0.1175099,85106.0,85105.0,0.107]
[1744817108372,0.117514,85103.0,85102.0,0.65404906]
[1744817108573,0.058751,85112.0,85111.0,0.1174994]
[1744817108780,0.1762255,85126.0,85125.0,0.1174837]
[1744817109170,0.1174838,85125.0,85124.0,0.1174837]
[1744817109475,0.1174878,85123.0,85122.0,0.1174864]
[1744817109778,0.1174878,85123.0,85122.0,0.0655]
[1744817109976,0.1865878,85123.0,85122.0,0.1829878]
[1744817110274,0.1174878,85123.0,85122.0,0.0655]
[1744817110867,0.1174878,85123.0,85122.0,0.1829878]
[1744817110868,0.1865878,85123.0,85122.0,0.1829878]
[1744817111582,0.1174846,85125.0,85124.0,0.1174837]
[1744817111783,0.1174846,85125.0,85122.0,0.0655]
[1744817111784,0.1174864,85123.0,85122.0,0.0655]
[1744817111977,0.1174864,85123.0,85122.0,0.0675]
[1744817112275,0.1175664,85123.0,85122.0,0.0675]
[1744817112480,0.1175664,85123.0,85122.0,0.1849878]
[1744817112679,8e-05,85123.0,85122.0,0.1849878]
[1744817112886,0.1174864,85123.0,85122.0,0.2437312]
[1744817113176,0.1175664,85123.0,85122.0,0.0655]
[1744817113377,0.1175664,85123.0,85122.0,0.1849878]
[1744817114976,0.1175664,85123.0,85122.0,0.1829878]
[1744817115173,0.1175664,85123.0,85122.0,0.1839878]
[1744817116182,0.1175664,85123.0,85122.0,0.0665]
[1744817116382,0.00017581,85134.0,85130.0,0.0587383]
[1744817116582,0.1174726,85133.0,85132.0,0.1174726]
[1744817117272,0.117474,85132.0,85131.0,0.1838754]
[1744817117671,8e-05,85133.0,85132.0,0.117474]
[1744817117871,0.00017581,85134.0,85133.0,0.1174726]
[1744817118181,0.117474,85132.0,85131.0,0.1838754]
[1744817118572,0.00017581,85134.0,85133.0,0.1174726]
[1744817118779,0.11764701,85134.0,85133.0,0.1174726]
[1744817119378,0.00017581,85134.0,85133.0,0.1174726]
[1744817119678,0.00025581,85134.0,85133.0,0.1174726]
[1744817119984,0.0587229,85153.0,85152.0,0.1174464]
[1744817120184,0.05883091,85153.0,85152.0,0.1174464]
[1744817120488,0.0587229,85153.0,85152.0,0.1174464]
[1744817120671,0.0588029,85153.0,85152.0,0.1174464]
[1744817120983,8e-05,85153.0,85152.0,0.1174464]
[1744817121377,0.1174345,85161.0,85160.0,0.1174354]
[1744817121680,0.1174381,85159.0,85158.0,0.1174378]
[1744817121982,0.0150762,85164.0,85163.0,0.1174312]
[1744817122180,0.03235565,85174.0,85172.0,0.1174188]
[1744817122481,0.03235565,85174.0,85173.0,0.1174174]
[1744817122686,0.03235565,85174.0,85173.0,0.13577018]
[1744817122885,0.03235565,85174.0,85173.0,0.2013697]
[1744817123278,0.03235565,85174.0,85173.0,0.21972307]
[1744817123884,0.03243565,85174.0,85173.0,0.21972307]
[1744817124482,0.03235565,85174.0,85173.0,0.21972307]
[1744817124690,0.14985175,85174.0,85173.0,0.20137077]
[1744817124874,0.03235565,85174.0,85173.0,0.56217077]
[1744817125190,0.03243565,85174.0,85173.0,0.56217077]
[1744817125487,0.03643565,85174.0,85173.0,0.56217077]
[1744817125673,0.00014581,85194.0,85173.0,0.88310495]
[1744817125878,0.1681,85200.0,85199.0,0.1173816]
[1744817126179,0.1173848,85198.0,85197.0,0.117384]
[1744817126388,0.1,85200.0,85199.0,0.1173816]
[1744817126578,0.1,85200.0,85199.0,0.6281816]
[1744817126774,0.1,85200.0,85199.0,0.49652991]
[1744817126973,0.1,85200.0,85199.0,0.51488328]
[1744817127177,0.1,85200.0,85199.0,0.58458328]
[1744817127377,0.10008,85200.0,85199.0,0.58458328]
[1744817127580,0.2174602,85200.0,85199.0,0.10640168]
[1744817127986,0.10008,85200.0,85199.0,0.22378502]
[1744817128178,0.1,85200.0,85199.0,0.22378502]
[1744817128381,0.10008,85200.0,85199.0,0.22378502]
[1744817128587,0.2174602,85200.0,85199.0,0.10640342]
[1744817128789,0.44588,85200.0,85199.0,0.03670342]
[1744817128994,0.5632602,85200.0,85199.0,0.03670342]
[1744817129199,0.8132602,85200.0,85199.0,0.03670342]
[1744817129388,0.8131802,85200.0,85199.0,0.03670342]
[1744817129579,0.8132602,85200.0,85199.0,0.03670342]
[1744817129892,0.8132602,85200.0,85170.0,0.0587101]
[1744817129893,0.69588,85200.0,85166.0,0.3608]
[1744817130091,0.3608,85181.0,85177.0,0.0661]
[1744817130287,0.3608,85191.0,85178.0,0.0675]
[1744817130494,0.0692,85180.0,85174.0,0.3608]
[1744817130789,0.0632,85179.0,85174.0,0.3608]
[1744817131094,0.0632,85179.0,85174.0,0.4708]
[1744817131392,0.00017574,85186.0,85185.0,0.1174009]
[1744817131580,0.00017574,85186.0,85183.0,0.1174034]
[1744817131786,0.00017574,85186.0,85185.0,0.1174009]
[1744817131981,0.00017574,85186.0,85184.0,0.1361]
[1744817132286,0.00025574,85186.0,85185.0,0.1174009]
[1744817132491,0.00025574,85186.0,85184.0,0.1361]
[1744817132695,0.1157616,85185.0,85184.0,0.1361]
[1744817132988,0.1821616,85185.0,85184.0,0.1361]
[1744817133189,0.1174023,85184.0,85183.0,0.3608]
[1744817133989,0.05003247,85185.0,85183.0,0.59511195]
[1744817134194,0.4782023,85184.0,85183.0,0.23431195]
[1744817134398,0.4812023,85184.0,85183.0,0.23431195]
[1744817134595,0.7312023,85184.0,85183.0,0.23431195]
[1744817134795,0.1174133,85176.0,85175.0,0.11882223]
[1744817135102,0.1174133,85176.0,85166.0,0.34906497]
[1744817135103,0.1174257,85167.0,85166.0,0.34906497]
[1744817135400,0.3608,85167.0,85147.0,0.40665486]
[1744817135604,0.1174519,85148.0,85147.0,0.40665486]
[1744817135805,0.0587225,85153.0,85147.0,0.40665486]
[1744817136102,0.1174519,85148.0,85147.0,0.40665486]
[1744817136304,0.12623668,85148.0,85147.0,0.40665486]
[1744817136502,0.12623668,85148.0,85147.0,0.52410816]
[1744817137006,0.12623668,85148.0,85147.0,0.52510816]
[1744817137194,0.0587217,85155.0,85151.0,0.0587238]
[1744817137395,0.0587217,85155.0,85147.0,0.76845486]
[1744817137396,0.0587217,85155.0,85154.0,0.4782436]
[1744817137600,0.0587217,85155.0,85152.0,0.0679]
[1744817137601,0.117445,85153.0,85152.0,0.0679]
[1744817138205,0.00017609,85159.0,85153.0,0.0587225]
[1744817138414,0.1262011,85185.0,85164.0,0.0587143]
[1744817138711,0.1262011,85185.0,85158.0,0.3608]
[1744817138712,0.1174158,85175.0,85174.0,0.1174136]
[1744817139310,0.14063103,85185.0,85181.0,0.1174029]
[1744817139311,0.1174077,85182.0,85181.0,0.1174029]
[1744817139508,0.1174077,85182.0,85181.0,0.2529029]
[1744817139706,0.1174077,85182.0,85181.0,0.1355]
[1744817139910,0.1174077,85182.0,85181.0,0.0685]
[1744817140210,0.005,85175.0,85174.0,0.1174161]
[1744817140605,0.1224147,85175.0,85174.0,0.1174161]
[1744817140811,8e-05,85182.0,85181.0,0.001]
[1744817141111,0.00017574,85183.0,85181.0,0.4792064]
[1744817141311,0.1173968,85188.0,85187.0,0.0586988]
[1744817141509,0.1173861,85197.0,85190.0,0.058697]
[1744817141812,0.00010801,85204.0,85199.0,0.1173816]
[1744817142112,0.08508,85200.0,85199.0,0.1173816]
[1744817142413,0.005,85216.0,85215.0,0.1173596]
[1744817142617,0.005,85216.0,85201.0,0.0586894]
[1744817142915,0.005,85216.0,85199.0,0.3608]
[1744817142916,0.1173802,85200.0,85199.0,0.4781816]
[1744817143104,0.1173913,85192.0,85191.0,0.00017609]
[1744817143413,0.1173902,85194.0,85193.0,0.1173871]
[1744817143602,0.006,85200.0,85196.0,0.0586925]
[1744817143803,0.0586757,85221.0,85198.0,0.3608]
[1744817144003,0.008,85216.0,85215.0,0.1173596]
[1744817144205,0.0586656,85236.0,85215.0,0.09]
[1744817144511,0.1173513,85222.0,85221.0,0.1173466]
[1744817145109,0.1173554,85220.0,85219.0,0.1173534]
[1744817145513,0.0586715,85227.0,85226.0,0.117343]
[1744817145712,0.1173374,85233.0,85226.0,0.3608]
[1744817145915,0.1173374,85233.0,85232.0,0.1173362]
[1744817146104,0.1173375,85231.0,85230.0,0.058669]
[1744817146303,0.058748,85233.0,85232.0,0.1173362]
[1744817146509,8e-05,85233.0,85232.0,0.1173362]
[1744817147115,0.1223224,85242.0,85241.0,0.1173238]
[1744817147310,0.005,85242.0,85239.0,0.0586628]
[1744817147506,0.1173265,85239.0,85238.0,0.4781276]
[1744817147706,0.1173265,85239.0,85238.0,0.3608]
[1744817147907,0.117343,85227.0,85226.0,0.3608]
[1744817148313,0.3608,85249.0,85241.0,0.1173238]
[1744817148511,0.3608,85249.0,85247.0,0.1173155]
[1744817148713,0.00014581,85260.0,85254.0,0.1173059]
[1744817149716,0.00014581,85260.0,85254.0,0.4781059]
[1744817149916,0.00046257,85262.0,85257.0,0.0586505]
[1744817150116,0.3608,85277.0,85267.0,0.117288]
[1744817150314,0.058641,85272.0,85267.0,0.117288]
[1744817150620,0.3608,85277.0,85267.0,0.117288]
[1744817150918,0.3608,85288.0,85271.0,0.1172821]
[1744817151124,0.0586357,85279.0,85276.0,0.1172746]
[1744817151317,0.3608,85281.0,85280.0,0.1172701]
[1744817151511,0.0586302,85287.0,85280.0,0.3608]
[1744817151712,0.1513397,85288.0,85280.0,0.3608]
[1744817151912,0.1172687,85281.0,85280.0,0.3608]
[1744817152221,0.1172839,85270.0,85269.0,0.3608]
[1744817152523,0.0656,85284.0,85269.0,0.3608]
[1744817152718,0.0586411,85272.0,85260.0,0.3608]
[1744817152922,0.1172976,85260.0,85250.0,0.01043101]
[1744817153219,0.1173334,85234.0,85231.0,0.3608]
[1744817153617,8e-05,85234.0,85231.0,0.3608]
[1744817153926,0.1173362,85232.0,85231.0,0.3608]
[1744817154218,0.0586533,85254.0,85231.0,0.3608]
[1744817154219,0.0586502,85258.0,85239.0,0.00504461]
[1744817154421,0.1173141,85248.0,85247.0,0.3608]
[1744817154610,0.00010801,85259.0,85258.0,0.1173004]
[1744817154815,0.117299,85259.0,85258.0,0.05865]
[1744817155521,8e-05,85259.0,85257.0,0.3608]
[1744817155723,0.055,85275.0,85274.0,0.1172784]
[1744817155922,0.1172784,85274.0,85273.0,0.3608]
[1744817156120,0.1172784,85274.0,85264.0,0.3608]
[1744817156121,0.1172907,85265.0,85264.0,0.3608]
[1744817156424,0.117299,85259.0,85258.0,0.1774004]
[1744817157010,0.118299,85259.0,85258.0,0.1774004]
[1744817157222,0.001,85259.0,85258.0,0.1774004]
[1744817157630,0.0586254,85295.0,85258.0,0.373]
[1744817157814,0.00014581,85280.0,85279.0,0.1172715]
[1744817158125,0.00026573,85282.0,85279.0,0.1172715]
[1744817158126,0.0586265,85293.0,85292.0,0.1172522]
[1744817158422,0.0586265,85293.0,85279.0,0.3608]
[1744817158423,0.1172701,85280.0,85279.0,0.3608]
[1744817158723,0.1172701,85280.0,85279.0,0.4780715]
[1744817158927,0.0595,85281.0,85279.0,0.3608]
[1744817159124,0.3608,85287.0,85271.0,0.00017597]
[1744817159125,0.0586378,85277.0,85271.0,0.00017597]
[1744817159315,0.1172811,85272.0,85271.0,0.00017597]
[1744817159723,0.0586269,85292.0,85271.0,0.37097597]
[1744817159929,0.1172586,85289.0,85286.0,0.1172611]
[1744817160126,0.059,85288.0,85280.0,0.3608]
[1744817160324,0.059,85288.0,85287.0,0.1172605]
[1744817160621,0.059,85288.0,85280.0,0.3608]
[1744817160622,8e-05,85288.0,85280.0,0.3608]
[1744817160822,8e-05,85288.0,85281.0,0.0586343]
[1744817161124,0.059,85290.0,85280.0,0.4194346]
[1744817161327,8e-05,85288.0,85280.0,0.3608]
[1744817161527,0.1172811,85272.0,85270.0,0.3466317]
[1744817161714,0.0586358,85279.0,85270.0,0.3466317]
[1744817161715,0.36088,85288.0,85271.0,0.41961707]
[1744817161921,0.062,85287.0,85271.0,0.36097597]
[1744817162225,0.1172742,85277.0,85276.0,0.1759125]
[1744817162420,0.1172733,85278.0,85277.0,0.1172729]
[1744817162624,0.0586337,85282.0,85276.0,0.0586376]
[1744817162922,8e-05,85288.0,85282.0,0.0586334]
[1744817163123,8e-05,85288.0,85287.0,0.1172605]
[1744817163322,8e-05,85288.0,85286.0,0.3608]
[1744817163521,0.4228,85289.0,85275.0,0.058]
[1744817163721,0.1172678,85282.0,85281.0,0.1172687]
[1744817163921,0.1172811,85272.0,85253.0,0.3608]
[1744817164119,0.1172811,85272.0,85269.0,0.1172847]
[1744817164316,0.1172963,85261.0,85260.0,0.3608]
[1744817165022,0.0586462,85264.0,85260.0,0.3608]
[1744817165221,0.1172908,85265.0,85264.0,0.1172916]
[1744817165426,0.1172921,85264.0,85263.0,0.058]
[1744817165733,0.117299,85259.0,85258.0,0.4781004]
[1744817165934,8e-05,85265.0,85264.0,0.1172921]
[1744817166230,0.1172963,85261.0,85260.0,0.28876328]
[1744817166733,0.0586472,85263.0,85260.0,0.28876328]
[1744817167034,0.0586513,85257.0,85249.0,0.34651594]
[1744817167224,0.1173114,85250.0,85249.0,0.34651594]
[1744817167425,0.0586535,85254.0,85249.0,0.34651594]
[1744817167735,0.1173114,85250.0,85249.0,0.34651594]
[1744817167932,8e-05,85254.0,85250.0,0.1173096]
[1744817168131,8e-05,85254.0,85247.0,0.3608]
[1744817168431,0.1173141,85249.0,85248.0,0.1173119]
[1744817168637,0.02513529,85252.0,85245.0,0.00137]
[1744817168823,0.1173169,85246.0,85245.0,0.00137]
[1744817169138,0.4781169,85246.0,85245.0,0.00137]
[1744817169329,0.1173169,85246.0,85245.0,0.00137]
[1744817169523,0.4781169,85246.0,85245.0,0.00137]
[1744817169927,0.22340094,85246.0,85245.0,0.00137]
[1744817170128,0.4781169,85246.0,85245.0,0.00137]
[1744817170337,0.1173169,85246.0,85245.0,0.00137]
[1744817170935,0.1173969,85246.0,85245.0,0.00137]
[1744817171438,0.7281969,85246.0,85245.0,0.00137]
[1744817171633,0.1173969,85246.0,85245.0,0.00137]
[1744817172343,0.1173969,85246.0,85245.0,0.45726603]
[1744817173432,0.1227,85251.0,85245.0,0.51426603]
[1744817173633,0.1227,85251.0,85250.0,0.4781114]
[1744817173833,0.24001,85251.0,85250.0,0.3608]
[1744817174235,0.24009,85251.0,85250.0,0.3608]
[1744817175042,0.06052024,85251.0,85250.0,1.37349177]
[1744817176438,8e-05,85251.0,85250.0,1.49080317]
[1744817176643,8e-05,85251.0,85250.0,1.58287483]
[1744817177027,0.1173073,85253.0,85252.0,0.0586539]
[1744817177228,0.1173086,85252.0,85251.0,0.17311]
[1744817177637,0.1173086,85252.0,85251.0,0.23521]
[1744817177832,0.1173086,85252.0,85251.0,0.1179]
[1744817178440,0.00425077,85259.0,85251.0,1.78233426]
[1744817178641,0.0586502,85258.0,85257.0,0.3608]
[1744817179438,0.05882416,85261.0,85257.0,0.3608]
[1744817179439,0.00017586,85261.0,85260.0,0.1172976]
[1744817179842,0.00017586,85261.0,85260.0,0.20936926]